{"text_format":"3","workbook":"xlsx","n_sheets":3,"sheets":["Listă de elevi","Lista elevilor din clasă","Detaliile elevilor"],"not_rendered":{"images":2,"defined_names":8},"read":"whole","date_system":"1900"}

{"sheet":"Listă de elevi","index":0,"n_rows":8,"n_cols":13,"rows_kept":8,"merged":[[1,2,2,3],[1,4,1,11],[2,4,2,11],[6,12,8,16]]}
[]
[null,null,"Listă de elevi",null,"ACCESAȚI LISTA ELEVILOR DIN CLASĂ"]
[{"$nulls":4},"ACCESAȚI DETALIILE ELEVILOR"]
[null,null,"NUMELE ELEVULUI","E-MAIL","TELEFON DOMICILIU","TELEFON MOBIL","Data nașterii","PERSOANĂ DE CONTACT ÎN CAZ DE URGENȚĂ","TELEFON DE URGENȚĂ","MEDIC","NUMĂRUL DE TELEFON AL MEDICULUI","  "]
[null,null,"Nume 1","Adresa de e-mail","Telefon domiciliu","Telefon mobil","Data","Persoana de contact 1","Telefon de urgență","Medic 1","Numărul de telefon al medicului"]
[null,null,"Nume 2","Adresa de e-mail","Telefon domiciliu","Telefon mobil","Dată","Persoană de contact 2","Telefon de urgență","Medic 2","Numărul de telefon al medicului"]
[null,null,"Nume 3","Adresa de e-mail","Telefon domiciliu","Telefon mobil","Dată","Persoană de contact 3","Telefon de urgență","Medic 3","Numărul de telefon al medicului",null,"Sfat: pentru a adăuga mai mulți elevi, în ultima celulă a tabelului, apăsați tasta Tab."]
[null,null,"Nume 4","Adresa de e-mail","Telefon domiciliu","Telefon mobil","Data","Persoană de contact 4","Telefon de urgență","Medic 4","Numărul de telefon al medicului"]

{"sheet":"Lista elevilor din clasă","index":1,"n_rows":12,"n_cols":7,"rows_kept":12,"merged":[[1,2,2,2],[1,3,2,3],[1,4,1,6],[2,4,2,6]]}
[]
[null,null,"Lista elevilor din clasă","Graphic Design Institute","ACCESAȚI LISTA DE ELEVI"]
[{"$nulls":4},"ACCESAȚI DETALIILE ELEVILOR"]
[null,null,"CURS","Numele cursului","DATA DE ÎNCEPUT","Data"]
[null,null,"INSTRUCTOR","Instructor 1","DATA DE SFÂRȘIT","Data"]
[null,null,"ELEVI ÎNSCRIȘI",{"$f":"COUNTA(ListăNumeElevi[NUMELE ELEVULUI])","v":4}]
[]
[null,null,"NUMELE ELEVULUI","E-MAIL","TELEFON DOMICILIU","TELEFON MOBIL","  "]
[null,null,"Nume 1",{"$f":"IFERROR(VLOOKUP(ListăNumeElevi[[#This Row],[NUMELE ELEVULUI]],Elevi[],2),\"\")","v":"Adresa de e-mail"},{"$f":"IFERROR(VLOOKUP(ListăNumeElevi[[#This Row],[NUMELE ELEVULUI]],Elevi[],3),\"\")","v":"Telefon domiciliu"},{"$f":"IFERROR(VLOOKUP(ListăNumeElevi[[#This Row],[NUMELE ELEVULUI]],Elevi[],4),\"\")","v":"Telefon mobil"}]
[null,null,"Nume 2",{"$f":"IFERROR(VLOOKUP(ListăNumeElevi[[#This Row],[NUMELE ELEVULUI]],Elevi[],2),\"\")","v":"Adresa de e-mail"},{"$f":"IFERROR(VLOOKUP(ListăNumeElevi[[#This Row],[NUMELE ELEVULUI]],Elevi[],3),\"\")","v":"Telefon domiciliu"},{"$f":"IFERROR(VLOOKUP(ListăNumeElevi[[#This Row],[NUMELE ELEVULUI]],Elevi[],4),\"\")","v":"Telefon mobil"}]
[null,null,"Nume 3",{"$f":"IFERROR(VLOOKUP(ListăNumeElevi[[#This Row],[NUMELE ELEVULUI]],Elevi[],2),\"\")","v":"Adresa de e-mail"},{"$f":"IFERROR(VLOOKUP(ListăNumeElevi[[#This Row],[NUMELE ELEVULUI]],Elevi[],3),\"\")","v":"Telefon domiciliu"},{"$f":"IFERROR(VLOOKUP(ListăNumeElevi[[#This Row],[NUMELE ELEVULUI]],Elevi[],4),\"\")","v":"Telefon mobil"}]
[null,null,"Nume 4",{"$f":"IFERROR(VLOOKUP(ListăNumeElevi[[#This Row],[NUMELE ELEVULUI]],Elevi[],2),\"\")","v":"Adresa de e-mail"},{"$f":"IFERROR(VLOOKUP(ListăNumeElevi[[#This Row],[NUMELE ELEVULUI]],Elevi[],3),\"\")","v":"Telefon domiciliu"},{"$f":"IFERROR(VLOOKUP(ListăNumeElevi[[#This Row],[NUMELE ELEVULUI]],Elevi[],4),\"\")","v":"Telefon mobil"}]

{"sheet":"Detaliile elevilor","index":2,"n_rows":13,"n_cols":4,"rows_kept":13,"merged":[[1,2,2,2],[1,3,1,4],[2,3,2,4],[3,2,3,3]]}
[]
[null,null,"Detaliile elevilor","ACCESAȚI LISTA DE ELEVI"]
[{"$nulls":3},"ACCESAȚI LISTA ELEVILOR DIN CLASĂ"]
[null,null,"SFAT: SELECTAȚI UN ELEV DIN LISTA VERTICALĂ DIN CELULA D5 PENTRU A ACTUALIZA DETALIILE ELEVULUI"]
[null,null,"NUMELE ELEVULUI","Nume 1"]
[null,null,"E-MAIL",{"$f":"IFERROR(VLOOKUP(NumeElev,Elevi[],2,FALSE),\"\")","v":"Adresa de e-mail"}]
[null,null,"TELEFON DOMICILIU",{"$f":"IFERROR(VLOOKUP(NumeElev,Elevi[],3,FALSE),\"\")","v":"Telefon domiciliu"}]
[null,null,"TELEFON MOBIL",{"$f":"IFERROR(VLOOKUP(NumeElev,Elevi[],4,FALSE),\"\")","v":"Telefon mobil"}]
[null,null,"Data nașterii",{"$f":"IFERROR(VLOOKUP(NumeElev,Elevi[],5,FALSE),\"\")","v":"Data"}]
[null,null,"PERSOANĂ DE CONTACT ÎN CAZ DE URGENȚĂ",{"$f":"IFERROR(VLOOKUP(NumeElev,Elevi[],6,FALSE),\"\")","v":"Persoana de contact 1"}]
[null,null,"TELEFON DE URGENȚĂ",{"$f":"IFERROR(VLOOKUP(NumeElev,Elevi[],7,FALSE),\"\")","v":"Telefon de urgență"}]
[null,null,"MEDIC",{"$f":"IFERROR(VLOOKUP(NumeElev,Elevi[],8,FALSE),\"\")","v":"Medic 1"}]
[null,null,"NUMĂRUL DE TELEFON AL MEDICULUI",{"$f":"IFERROR(VLOOKUP(NumeElev,Elevi[],9,FALSE),\"\")","v":"Numărul de telefon al medicului"}]